[Event "Late-Titled-Tuesday-Blitz-May-28-2024"]
[Site "Chess.com"]
[Date "2024.05.28"]
[Round "6"]
[White "ChEsper99"]
[Black "Roedor"]
[Result "1-0"]
[WhiteElo "2237"]
[BlackElo "2319"]
[TimeControl "180+1"]
[EndTime "15:08:36 PDT"]
[Termination "ChEsper99 won by resignation"]

1. e4 {[%clk 0:03:00.8]} 1... e5 {[%clk 0:02:57.3]} 2. Nf3 {[%clk 0:02:59.5]}
2... Nc6 {[%clk 0:02:57.3]} 3. Bb5 {[%clk 0:02:59.1]} 3... Nf6 {[%clk
0:02:53.9]} 4. O-O {[%clk 0:02:57.1]} 4... Nxe4 {[%clk 0:02:52.9]} 5. Re1 {[%clk
0:02:57.7]} 5... Nd6 {[%clk 0:02:52.6]} 6. Nxe5 {[%clk 0:02:58.2]} 6... Be7
{[%clk 0:02:51.4]} 7. Bf1 {[%clk 0:02:57]} 7... Nxe5 {[%clk 0:02:50.2]} 8. Rxe5
{[%clk 0:02:57.6]} 8... O-O {[%clk 0:02:50.7]} 9. Nc3 {[%clk 0:02:57.5]} 9...
Bf6 {[%clk 0:02:51.3]} 10. Re1 {[%clk 0:02:56.9]} 10... Re8 {[%clk 0:02:51]} 11.
Nd5 {[%clk 0:02:56]} 11... Rxe1 {[%clk 0:02:44.4]} 12. Qxe1 {[%clk 0:02:56.9]}
12... Bg5 {[%clk 0:02:44]} 13. g3 {[%clk 0:02:23.8]} 13... c6 {[%clk 0:02:42.8]}
14. Nc3 {[%clk 0:02:21.8]} 14... Ne8 {[%clk 0:02:34.3]} 15. h4 {[%clk
0:02:17.4]} 15... Be7 {[%clk 0:02:32.8]} 16. d4 {[%clk 0:02:13.4]} 16... d5
{[%clk 0:02:33]} 17. Bd3 {[%clk 0:02:08.7]} 17... g6 {[%clk 0:02:31.9]} 18. Bf4
{[%clk 0:01:59]} 18... Ng7 {[%clk 0:02:30.9]} 19. Qe2 {[%clk 0:01:46.4]} 19...
Bf5 {[%clk 0:02:28.7]} 20. Re1 {[%clk 0:01:45.9]} 20... Bd6 {[%clk 0:02:25.6]}
21. Be5 {[%clk 0:01:44.1]} 21... Bxd3 {[%clk 0:02:24.4]} 22. Qxd3 {[%clk
0:01:43.6]} 22... Bxe5 {[%clk 0:02:23.5]} 23. Rxe5 {[%clk 0:01:43.2]} 23... Ne6
{[%clk 0:02:22.8]} 24. Ne2 {[%clk 0:01:32.2]} 24... Qf6 {[%clk 0:02:19.5]} 25.
c3 {[%clk 0:01:26.5]} 25... h5 {[%clk 0:02:17.9]} 26. a4 {[%clk 0:01:17.3]}
26... a5 {[%clk 0:02:12.8]} 27. Qe3 {[%clk 0:01:14.1]} 27... Kg7 {[%clk
0:02:10.1]} 28. Nc1 {[%clk 0:01:13.3]} 28... b6 {[%clk 0:01:13.1]} 29. Nd3
{[%clk 0:01:05.8]} 29... Ra7 {[%clk 0:01:12.4]} 30. Qe2 {[%clk 0:00:57.4]} 30...
Rb7 {[%clk 0:00:55.6]} 31. Re3 {[%clk 0:00:55.3]} 31... b5 {[%clk 0:00:50.3]}
32. Rf3 {[%clk 0:00:44.8]} 32... Qe7 {[%clk 0:00:49.8]} 33. Ne5 {[%clk
0:00:42.8]} 33... Qd6 {[%clk 0:00:44.1]} 34. axb5 {[%clk 0:00:37.8]} 34... cxb5
{[%clk 0:00:45]} 35. Qd3 {[%clk 0:00:25.9]} 35... Nc5 {[%clk 0:00:36.2]} 36. Qc2
{[%clk 0:00:20.3]} 36... Ne4 {[%clk 0:00:34.6]} 37. Nd3 {[%clk 0:00:12.1]} 37...
b4 {[%clk 0:00:33.4]} 38. cxb4 {[%clk 0:00:08.2]} 38... axb4 {[%clk 0:00:34.3]}
39. Nc5 {[%clk 0:00:08.5]} 39... Rc7 {[%clk 0:00:28.8]} 40. Nxe4 {[%clk
0:00:07.8]} 40... dxe4 {[%clk 0:00:27.2]} 41. Qxe4 {[%clk 0:00:08.1]} 41... Rc1+
{[%clk 0:00:26.4]} 42. Kg2 {[%clk 0:00:07.8]} 42... Rd1 {[%clk 0:00:22]} 43.
Qe5+ {[%clk 0:00:03.9]} 43... Qxe5 {[%clk 0:00:20.9]} 44. dxe5 {[%clk
0:00:04.8]} 44... Re1 {[%clk 0:00:20.6]} 45. Rb3 {[%clk 0:00:04.4]} 45... Re4
{[%clk 0:00:20]} 46. Kf3 {[%clk 0:00:04.1]} 46... Rc4 {[%clk 0:00:19.9]} 47. Ke3
{[%clk 0:00:04.2]} 47... Kf8 {[%clk 0:00:19.7]} 48. Kd3 {[%clk 0:00:04.1]} 48...
Rc5 {[%clk 0:00:19.4]} 49. Rxb4 {[%clk 0:00:04]} 49... Rxe5 {[%clk 0:00:19.7]}
50. Re4 {[%clk 0:00:02.8]} 50... Rb5 {[%clk 0:00:19.4]} 51. b4 {[%clk
0:00:03.2]} 51... f5 {[%clk 0:00:17.7]} 52. Rc4 {[%clk 0:00:02.9]} 52... Kf7
{[%clk 0:00:16.5]} 53. Kc3 {[%clk 0:00:03.4]} 53... Kf6 {[%clk 0:00:14.7]} 54.
Rc5 {[%clk 0:00:03.3]} 54... Rb8 {[%clk 0:00:13.9]} 55. b5 {[%clk 0:00:03]}
55... f4 {[%clk 0:00:14.2]} 56. Kc4 {[%clk 0:00:01.8]} 56... fxg3 {[%clk
0:00:13.6]} 57. fxg3 {[%clk 0:00:02.7]} 57... Ke6 {[%clk 0:00:10.8]} 58. Rg5
{[%clk 0:00:02.5]} 58... Kf6 {[%clk 0:00:10.3]} 59. Kc5 {[%clk 0:00:01.7]} 59...
Rc8+ {[%clk 0:00:10.1]} 60. Kb4 {[%clk 0:00:02]} 60... Rb8 {[%clk 0:00:08.9]}
61. Kc4 {[%clk 0:00:02.2]} 61... Rc8+ {[%clk 0:00:09.1]} 62. Rc5 {[%clk
0:00:02.8]} 62... Rb8 {[%clk 0:00:10]} 63. Kb4 {[%clk 0:00:02.8]} 63... Rd8
{[%clk 0:00:10.2]} 64. b6 {[%clk 0:00:02.4]} 64... Rd1 {[%clk 0:00:09.5]} 65.
Kb5 {[%clk 0:00:02.5]} 65... Rb1+ {[%clk 0:00:10.1]} 66. Kc6 {[%clk 0:00:02.8]}
66... Ke6 {[%clk 0:00:10.8]} 67. b7 {[%clk 0:00:02.9]} 67... g5 {[%clk
0:00:09.2]} 68. hxg5 {[%clk 0:00:02.6]} 68... Rc1 {[%clk 0:00:09.8]} 69. Rxc1
{[%clk 0:00:02.4]} 69... Kf5 {[%clk 0:00:10.7]} 70. Rh1 {[%clk 0:00:02.6]} 70...
Kg4 {[%clk 0:00:11.6]} 71. Rxh5 {[%clk 0:00:02.8]} 71... Kxh5 {[%clk 0:00:12]}
72. b8=Q {[%clk 0:00:03.7]} 72... Kxg5 {[%clk 0:00:12.9]} 73. Qf4+ {[%clk
0:00:03.7]} 73... Kh5 {[%clk 0:00:13]} 74. g4+ {[%clk 0:00:02.3]} 74... Kg6
{[%clk 0:00:13.9]} 75. Qf5+ {[%clk 0:00:02.4]} 75... Kg7 {[%clk 0:00:14.8]} 76.
Kd6 {[%clk 0:00:02.6]} 76... Kg8 {[%clk 0:00:15.6]} 77. Ke6 {[%clk 0:00:03.2]}
77... Kh8 {[%clk 0:00:16.5]} 78. Qg5 {[%clk 0:00:03.2]} 78... Kh7 {[%clk
0:00:16.3]} 79. Kf7 {[%clk 0:00:03.9]} 1-0

[Event "Late-Titled-Tuesday-Blitz-May-28-2024"]
[Site "Chess.com"]
[Date "2024.05.28"]
[Round "6"]
[White "kinga2008"]
[Black "Bykov_Egor"]
[Result "1-0"]
[WhiteElo "2428"]
[BlackElo "2622"]
[TimeControl "180+1"]
[EndTime "15:08:37 PDT"]
[Termination "kinga2008 won by resignation"]

1. e4 {[%clk 0:03:00.9]} 1... c6 {[%clk 0:02:54.1]} 2. c4 {[%clk 0:02:58.5]}
2... d5 {[%clk 0:02:54]} 3. exd5 {[%clk 0:02:59.4]} 3... cxd5 {[%clk 0:02:54.6]}
4. d4 {[%clk 0:03:00.3]} 4... Nf6 {[%clk 0:02:54.7]} 5. Nc3 {[%clk 0:03:00.6]}
5... e6 {[%clk 0:02:55.3]} 6. Nf3 {[%clk 0:02:59.6]} 6... Bb4 {[%clk 0:02:53.1]}
7. cxd5 {[%clk 0:02:53.4]} 7... Nxd5 {[%clk 0:02:51.9]} 8. Bd2 {[%clk
0:02:51.8]} 8... Nc6 {[%clk 0:02:51.2]} 9. Bd3 {[%clk 0:02:51.1]} 9... Nce7
{[%clk 0:02:21.4]} 10. Nxd5 {[%clk 0:02:41.8]} 10... Bxd2+ {[%clk 0:02:13.9]}
11. Qxd2 {[%clk 0:02:39.9]} 11... Qxd5 {[%clk 0:02:09.2]} 12. Rc1 {[%clk
0:02:37.4]} 12... O-O {[%clk 0:02:04.6]} 13. b3 {[%clk 0:02:32.5]} 13... Bd7
{[%clk 0:01:55.3]} 14. Rc5 {[%clk 0:02:29.9]} 14... Qd6 {[%clk 0:01:54]} 15. Qe2
{[%clk 0:02:23.1]} 15... Bc6 {[%clk 0:01:51]} 16. Bxh7+ {[%clk 0:02:15.3]} 16...
Kxh7 {[%clk 0:01:45.7]} 17. Ng5+ {[%clk 0:02:14.4]} 17... Kg8 {[%clk 0:01:05.1]}
18. Qh5 {[%clk 0:02:13.9]} 18... Be4 {[%clk 0:01:03.6]} 19. Nxe4 {[%clk
0:02:11.3]} 19... Qxd4 {[%clk 0:01:02.1]} 20. Ng5 {[%clk 0:02:08.1]} 20... Qd3
{[%clk 0:01:01.2]} 21. Rc1 {[%clk 0:01:47.7]} 21... Rad8 {[%clk 0:00:45.4]} 22.
Qe2 {[%clk 0:01:36.7]} 22... Qf5 {[%clk 0:00:41.3]} 23. h4 {[%clk 0:01:32.8]}
23... Rd4 {[%clk 0:00:38.2]} 24. g3 {[%clk 0:01:29.4]} 24... Qa5+ {[%clk
0:00:34.1]} 25. Kf1 {[%clk 0:01:26.4]} 25... Qd5 {[%clk 0:00:31.9]} 26. Kg1
{[%clk 0:01:18.5]} 26... Rd2 {[%clk 0:00:24.2]} 27. Qh5 {[%clk 0:01:16.8]} 27...
Qf5 {[%clk 0:00:18.9]} 28. Rh2 {[%clk 0:00:57.2]} 28... Rfd8 {[%clk 0:00:18.2]}
29. Rg2 {[%clk 0:00:50.6]} 29... Qg6 {[%clk 0:00:12.6]} 30. Qf3 {[%clk 0:00:47]}
30... Nc6 {[%clk 0:00:11.9]} 31. Ne4 {[%clk 0:00:34.9]} 31... Nd4 {[%clk
0:00:10.6]} 32. Qe3 {[%clk 0:00:13.1]} 32... Ne2+ {[%clk 0:00:09.5]} 33. Kh2
{[%clk 0:00:11.7]} 33... Nxc1 {[%clk 0:00:08.9]} 34. Nxd2 {[%clk 0:00:12]} 34...
Nxa2 {[%clk 0:00:04.8]} 35. Nc4 {[%clk 0:00:10.8]} 35... b6 {[%clk 0:00:03.6]}
36. Ne5 {[%clk 0:00:10.8]} 36... Qf5 {[%clk 0:00:03.1]} 37. Nc6 {[%clk
0:00:11.4]} 37... Rd3 {[%clk 0:00:02.9]} 38. Ne7+ {[%clk 0:00:11.4]} 38... Kf8
{[%clk 0:00:01.5]} 39. Nxf5 {[%clk 0:00:12.3]} 39... Rxe3 {[%clk 0:00:01.6]} 40.
Nxe3 {[%clk 0:00:13.2]} 40... Nc1 {[%clk 0:00:02.1]} 41. Rg1 {[%clk 0:00:12.9]}
41... Nxb3 {[%clk 0:00:03]} 42. Rb1 {[%clk 0:00:13.3]} 42... Nc5 {[%clk
0:00:03.4]} 43. Ra1 {[%clk 0:00:13.9]} 43... a6 {[%clk 0:00:03.8]} 44. Nc4
{[%clk 0:00:14]} 44... b5 {[%clk 0:00:04.2]} 45. Ne5 {[%clk 0:00:12.6]} 45...
Ke7 {[%clk 0:00:04.8]} 46. Rc1 {[%clk 0:00:13.2]} 46... Nb3 {[%clk 0:00:04.3]}
47. Rc3 {[%clk 0:00:11.6]} 47... Nd2 {[%clk 0:00:03.8]} 48. Nc6+ {[%clk
0:00:11.8]} 48... Ke8 {[%clk 0:00:03.8]} 49. Nd4 {[%clk 0:00:11.5]} 49... Ne4
{[%clk 0:00:03.6]} 50. Rc6 {[%clk 0:00:09.4]} 50... a5 {[%clk 0:00:03.8]} 51.
Nxb5 {[%clk 0:00:09.3]} 51... Kd7 {[%clk 0:00:02.8]} 52. Ra6 {[%clk 0:00:09.6]}
52... Nxf2 {[%clk 0:00:03.1]} 53. Rxa5 {[%clk 0:00:09.9]} 53... Kc6 {[%clk
0:00:03.6]} 54. Nd4+ {[%clk 0:00:10.6]} 54... Kd6 {[%clk 0:00:03.9]} 55. Ra6+
{[%clk 0:00:10.2]} 55... Ke5 {[%clk 0:00:03.7]} 56. Nf3+ {[%clk 0:00:10.5]}
56... Ke4 {[%clk 0:00:04.1]} 57. Ng5+ {[%clk 0:00:11]} 57... Kf5 {[%clk
0:00:03.8]} 58. Nxf7 {[%clk 0:00:11.6]} 58... Ng4+ {[%clk 0:00:04.7]} 59. Kh3
{[%clk 0:00:11.8]} 59... Ne3 {[%clk 0:00:05.6]} 60. Ra5+ {[%clk 0:00:11.2]}
60... Kf6 {[%clk 0:00:05.6]} 61. Ne5 {[%clk 0:00:11.7]} 61... Nd1 {[%clk
0:00:06.2]} 62. Ng4+ {[%clk 0:00:12.3]} 62... Kg6 {[%clk 0:00:05.8]} 63. Rg5+
{[%clk 0:00:12.9]} 63... Kf7 {[%clk 0:00:06]} 64. Ne5+ {[%clk 0:00:13.6]} 64...
Kf6 {[%clk 0:00:06.9]} 65. Nd3 {[%clk 0:00:08.5]} 65... Ne3 {[%clk 0:00:04.8]}
66. Nf4 {[%clk 0:00:08.5]} 66... e5 {[%clk 0:00:04.1]} 67. Nh5+ {[%clk 0:00:08]}
67... Ke6 {[%clk 0:00:04.1]} 68. Nxg7+ {[%clk 0:00:08.2]} 68... Kf6 {[%clk
0:00:04.5]} 69. Ne8+ {[%clk 0:00:08.5]} 69... Ke7 {[%clk 0:00:04.4]} 70. h5
{[%clk 0:00:08]} 70... e4 {[%clk 0:00:03.2]} 71. h6 {[%clk 0:00:08.3]} 71... Nd1
{[%clk 0:00:02]} 72. h7 {[%clk 0:00:08.6]} 72... Nf2+ {[%clk 0:00:02.9]} 73. Kg2
{[%clk 0:00:08.3]} 73... e3 {[%clk 0:00:03.8]} 74. h8=Q {[%clk 0:00:08.7]} 1-0

[Event "Late-Titled-Tuesday-Blitz-May-28-2024"]
[Site "Chess.com"]
[Date "2024.05.28"]
[Round "6"]
[White "NajdorfPlayerc5"]
[Black "Sanyura"]
[Result "1/2-1/2"]
[WhiteElo "2444"]
[BlackElo "2608"]
[TimeControl "180+1"]
[EndTime "15:08:44 PDT"]
[Termination "Game drawn - insufficient material"]

1. d4 {[%clk 0:03:00.9]} 1... Nf6 {[%clk 0:02:48]} 2. Nc3 {[%clk 0:02:59]} 2...
d5 {[%clk 0:02:47.6]} 3. Bf4 {[%clk 0:02:56.7]} 3... a6 {[%clk 0:02:44.7]} 4. e3
{[%clk 0:02:55.1]} 4... c5 {[%clk 0:02:45.2]} 5. Nf3 {[%clk 0:02:53.6]} 5... Nc6
{[%clk 0:02:45.8]} 6. Be2 {[%clk 0:02:52]} 6... Bf5 {[%clk 0:02:43.8]} 7. Ne5
{[%clk 0:02:49]} 7... e6 {[%clk 0:02:43.8]} 8. O-O {[%clk 0:02:47.1]} 8... Be7
{[%clk 0:02:39.5]} 9. Nxc6 {[%clk 0:02:34]} 9... bxc6 {[%clk 0:02:39.1]} 10. Na4
{[%clk 0:02:34.9]} 10... cxd4 {[%clk 0:02:34.3]} 11. exd4 {[%clk 0:02:35.8]}
11... O-O {[%clk 0:02:31.1]} 12. Bd3 {[%clk 0:02:19.1]} 12... Bxd3 {[%clk
0:02:20.5]} 13. Qxd3 {[%clk 0:02:20]} 13... Qa5 {[%clk 0:02:20.8]} 14. b3 {[%clk
0:02:10.3]} 14... Qb5 {[%clk 0:02:06.2]} 15. Rfc1 {[%clk 0:01:40.7]} 15... Rfc8
{[%clk 0:01:57.4]} 16. c4 {[%clk 0:01:30.7]} 16... dxc4 {[%clk 0:01:56.6]} 17.
Qxc4 {[%clk 0:01:24.3]} 17... Rd8 {[%clk 0:01:44.3]} 18. Qxc6 {[%clk 0:01:18.4]}
18... Qxc6 {[%clk 0:01:43.7]} 19. Rxc6 {[%clk 0:01:19.3]} 19... Rxd4 {[%clk
0:01:44.3]} 20. Be3 {[%clk 0:01:11.9]} 20... Rd3 {[%clk 0:01:41.7]} 21. Rac1
{[%clk 0:00:52.1]} 21... h5 {[%clk 0:01:37.8]} 22. h3 {[%clk 0:00:50.7]} 22...
Ba3 {[%clk 0:01:27.1]} 23. Rc8+ {[%clk 0:00:49.6]} 23... Rxc8 {[%clk 0:01:26.7]}
24. Rxc8+ {[%clk 0:00:50.5]} 24... Kh7 {[%clk 0:01:27.4]} 25. Ra8 {[%clk
0:00:41.7]} 25... Rd1+ {[%clk 0:01:19.4]} 26. Kh2 {[%clk 0:00:40.8]} 26... Bd6+
{[%clk 0:01:18.5]} 27. g3 {[%clk 0:00:40.5]} 27... h4 {[%clk 0:01:14.8]} 28.
Rxa6 {[%clk 0:00:32.3]} 28... hxg3+ {[%clk 0:01:14.7]} 29. fxg3 {[%clk
0:00:33.2]} 29... Ne4 {[%clk 0:01:14.1]} 30. Rc6 {[%clk 0:00:16.5]} 30... Ra1
{[%clk 0:00:59.5]} 31. Rc2 {[%clk 0:00:13.7]} 31... Nxg3 {[%clk 0:00:57.8]} 32.
Kg2 {[%clk 0:00:14]} 32... Nf5 {[%clk 0:00:57.7]} 33. Bf2 {[%clk 0:00:14]} 33...
e5 {[%clk 0:00:54.1]} 34. Nb6 {[%clk 0:00:11.9]} 34... e4 {[%clk 0:00:53.4]} 35.
Nc4 {[%clk 0:00:10.8]} 35... Bf4 {[%clk 0:00:53.2]} 36. Re2 {[%clk 0:00:08.7]}
36... g5 {[%clk 0:00:35.2]} 37. a4 {[%clk 0:00:07.8]} 37... Rb1 {[%clk
0:00:34.9]} 38. Rxe4 {[%clk 0:00:04.6]} 38... Rxb3 {[%clk 0:00:34.9]} 39. a5
{[%clk 0:00:05]} 39... Ng3 {[%clk 0:00:15.8]} 40. Re7 {[%clk 0:00:02.3]} 40...
Rb4 {[%clk 0:00:10]} 41. a6 {[%clk 0:00:01.9]} 41... Rxc4 {[%clk 0:00:10.3]} 42.
a7 {[%clk 0:00:02.4]} 42... Ra4 {[%clk 0:00:10.8]} 43. Re8 {[%clk 0:00:02.8]}
43... Nf5 {[%clk 0:00:04.9]} 44. a8=Q {[%clk 0:00:02.7]} 44... Rxa8 {[%clk
0:00:05.7]} 45. Rxa8 {[%clk 0:00:03.5]} 45... Kg6 {[%clk 0:00:06.2]} 46. Ra6+
{[%clk 0:00:03.4]} 46... f6 {[%clk 0:00:06.8]} 47. Be1 {[%clk 0:00:03]} 47...
Ne3+ {[%clk 0:00:06.8]} 48. Kf3 {[%clk 0:00:03]} 48... Nd5 {[%clk 0:00:06.6]}
49. Ra5 {[%clk 0:00:02.2]} 49... Nc7 {[%clk 0:00:04.6]} 50. Bc3 {[%clk 0:00:02]}
50... f5 {[%clk 0:00:03.2]} 51. Rc5 {[%clk 0:00:01.6]} 51... Ne6 {[%clk
0:00:01]} 52. Rc6 {[%clk 0:00:02.5]} 52... Kf7 {[%clk 0:00:01.4]} 53. Ra6 {[%clk
0:00:02.1]} 53... Nc7 {[%clk 0:00:01.4]} 54. Rc6 {[%clk 0:00:02.2]} 54... Nd5
{[%clk 0:00:01]} 55. Bb2 {[%clk 0:00:02.1]} 55... Ne7 {[%clk 0:00:01.2]} 56. Ra6
{[%clk 0:00:01.9]} 56... Ke8 {[%clk 0:00:01.4]} 57. Bc3 {[%clk 0:00:02.1]} 57...
Kf7 {[%clk 0:00:02]} 58. Bb2 {[%clk 0:00:02]} 58... Nd5 {[%clk 0:00:02.1]} 59.
Bd4 {[%clk 0:00:02.2]} 59... Ne7 {[%clk 0:00:02.1]} 60. Ra7 {[%clk 0:00:02.3]}
60... Ke6 {[%clk 0:00:02]} 61. Rb7 {[%clk 0:00:02.2]} 61... Nd5 {[%clk
0:00:02.2]} 62. Bc5 {[%clk 0:00:01.9]} 62... Be5 {[%clk 0:00:02.2]} 63. Ra7
{[%clk 0:00:01.4]} 63... Nf6 {[%clk 0:00:02.4]} 64. Ra6+ {[%clk 0:00:01.6]}
64... Kd5 {[%clk 0:00:03]} 65. Be7 {[%clk 0:00:01]} 65... g4+ {[%clk 0:00:03.9]}
66. hxg4 {[%clk 0:00:01]} 66... fxg4+ {[%clk 0:00:04.8]} 67. Kg2 {[%clk
0:00:01.9]} 67... Nh5 {[%clk 0:00:04.8]} 68. Ra4 {[%clk 0:00:01.6]} 68... Nf4+
{[%clk 0:00:04.2]} 69. Kg3 {[%clk 0:00:01.9]} 69... Ng6+ {[%clk 0:00:03.8]} 70.
Kxg4 {[%clk 0:00:02]} 70... Nxe7 {[%clk 0:00:04.4]} 71. Kf3 {[%clk 0:00:01.8]}
71... Nc6 {[%clk 0:00:04.4]} 72. Ra6 {[%clk 0:00:01.6]} 72... Nd4+ {[%clk
0:00:04.4]} 73. Kg2 {[%clk 0:00:02.2]} 73... Ke4 {[%clk 0:00:04.7]} 74. Ra8
{[%clk 0:00:02.2]} 74... Nf5 {[%clk 0:00:03.5]} 75. Re8 {[%clk 0:00:02.3]} 75...
Kf4 {[%clk 0:00:03.2]} 76. Rxe5 {[%clk 0:00:02.1]} 76... Kxe5 {[%clk 0:00:02.7]}
1/2-1/2

[Event "Late-Titled-Tuesday-Blitz-May-28-2024"]
[Site "Chess.com"]
[Date "2024.05.28"]
[Round "6"]
[White "DanylaBagrov"]
[Black "JanMur7"]
[Result "1-0"]
[WhiteElo "2485"]
[BlackElo "2297"]
[TimeControl "180+1"]
[EndTime "15:08:49 PDT"]
[Termination "DanylaBagrov won by checkmate"]

1. e4 {[%clk 0:02:15.2]} 1... g6 {[%clk 0:02:58.5]} 2. d4 {[%clk 0:02:14.6]}
2... Bg7 {[%clk 0:02:58.9]} 3. Nc3 {[%clk 0:02:13]} 3... c5 {[%clk 0:02:59.2]}
4. Nf3 {[%clk 0:02:11.5]} 4... cxd4 {[%clk 0:02:58.3]} 5. Nxd4 {[%clk
0:02:12.4]} 5... Nc6 {[%clk 0:02:58.2]} 6. Be3 {[%clk 0:02:12.9]} 6... d6 {[%clk
0:02:57.9]} 7. h4 {[%clk 0:02:09.9]} 7... h5 {[%clk 0:02:57]} 8. Qd2 {[%clk
0:02:05.2]} 8... Nf6 {[%clk 0:02:56.8]} 9. f3 {[%clk 0:01:59.7]} 9... Bd7 {[%clk
0:02:56.6]} 10. Bc4 {[%clk 0:01:53.1]} 10... a6 {[%clk 0:02:55.9]} 11. a4 {[%clk
0:01:49.4]} 11... Rc8 {[%clk 0:02:51.9]} 12. Ba2 {[%clk 0:01:23.4]} 12... Ne5
{[%clk 0:02:46.6]} 13. O-O {[%clk 0:01:09.3]} 13... O-O {[%clk 0:02:43.6]} 14.
Qe2 {[%clk 0:01:02.2]} 14... Qc7 {[%clk 0:02:39.3]} 15. Rfd1 {[%clk 0:00:27.1]}
15... Nc4 {[%clk 0:02:35.2]} 16. Bxc4 {[%clk 0:00:27.3]} 16... Qxc4 {[%clk
0:02:36]} 17. Qxc4 {[%clk 0:00:28.1]} 17... Rxc4 {[%clk 0:02:36.4]} 18. Nd5
{[%clk 0:00:25.5]} 18... Nxd5 {[%clk 0:02:34.9]} 19. exd5 {[%clk 0:00:26.4]}
19... Bxd4 {[%clk 0:02:30.7]} 20. Rxd4 {[%clk 0:00:26]} 20... Rxc2 {[%clk
0:02:31.2]} 21. Rb4 {[%clk 0:00:25.4]} 21... b5 {[%clk 0:02:29.5]} 22. axb5
{[%clk 0:00:24.2]} 22... Bxb5 {[%clk 0:02:30.2]} 23. Bg5 {[%clk 0:00:20.5]}
23... Re2 {[%clk 0:02:27.2]} 24. Rd1 {[%clk 0:00:18.5]} 24... Rc8 {[%clk
0:02:26.5]} 25. Rd2 {[%clk 0:00:17.4]} 25... Rc2 {[%clk 0:02:26.8]} 26. Rxc2
{[%clk 0:00:17]} 26... Rxc2 {[%clk 0:02:26.3]} 27. Bxe7 {[%clk 0:00:17.2]} 27...
Rc1+ {[%clk 0:02:21.9]} 28. Kh2 {[%clk 0:00:17.1]} 28... Rd1 {[%clk 0:02:22.8]}
29. Bxd6 {[%clk 0:00:12.4]} 29... Rxd5 {[%clk 0:02:23.4]} 30. Be7 {[%clk
0:00:09.8]} 30... Rd7 {[%clk 0:02:20.8]} 31. Bf6 {[%clk 0:00:09.8]} 31... Rd6
{[%clk 0:02:20.5]} 32. Bc3 {[%clk 0:00:09.5]} 32... Rc6 {[%clk 0:02:19.9]} 33.
Rd4 {[%clk 0:00:09.6]} 33... Rc8 {[%clk 0:02:19.5]} 34. Rd6 {[%clk 0:00:09.7]}
34... Re8 {[%clk 0:02:18.9]} 35. Rb6 {[%clk 0:00:09.7]} 35... Rc8 {[%clk
0:02:15.4]} 36. Kg3 {[%clk 0:00:09.1]} 36... Kf8 {[%clk 0:02:15.3]} 37. Kf4
{[%clk 0:00:08.3]} 37... Rc4+ {[%clk 0:02:08.6]} 38. Kg5 {[%clk 0:00:08.6]}
38... Rc5+ {[%clk 0:02:09.1]} 39. Kh6 {[%clk 0:00:07.3]} 39... Rc8 {[%clk
0:02:05.6]} 40. Bb4+ {[%clk 0:00:05.5]} 40... Kg8 {[%clk 0:02:01.2]} 41. Rb7
{[%clk 0:00:05.9]} 41... Re8 {[%clk 0:01:57.6]} 42. Bc3 {[%clk 0:00:05.4]} 42...
Re6 {[%clk 0:01:54.5]} 43. g4 {[%clk 0:00:03.1]} 43... hxg4 {[%clk 0:01:52.5]}
44. fxg4 {[%clk 0:00:04]} 44... Re4 {[%clk 0:01:52.1]} 45. Kg5 {[%clk
0:00:03.8]} 45... Re8 {[%clk 0:01:48.3]} 46. h5 {[%clk 0:00:04.1]} 46... gxh5
{[%clk 0:01:47.4]} 47. gxh5 {[%clk 0:00:05]} 47... Re6 {[%clk 0:01:23.1]} 48.
Rb8+ {[%clk 0:00:04.5]} 48... Re8 {[%clk 0:01:22.4]} 49. Rb6 {[%clk 0:00:05]}
49... Re6 {[%clk 0:01:15.8]} 50. Rb7 {[%clk 0:00:04.9]} 50... Re2 {[%clk
0:01:10.5]} 51. h6 {[%clk 0:00:03.8]} 51... Rg2+ {[%clk 0:01:00.5]} 52. Kf5
{[%clk 0:00:04.1]} 52... Rf2+ {[%clk 0:00:53.9]} 53. Kg4 {[%clk 0:00:04]} 53...
Re2 {[%clk 0:00:42.9]} 54. Bf6 {[%clk 0:00:02.5]} 54... Re6 {[%clk 0:00:37.6]}
55. Kf5 {[%clk 0:00:02.8]} 55... Bd3+ {[%clk 0:00:35.5]} 56. Kg5 {[%clk
0:00:03.3]} 56... Bb5 {[%clk 0:00:29.6]} 57. Rc7 {[%clk 0:00:03.6]} 57... Re2
{[%clk 0:00:26]} 58. Be7 {[%clk 0:00:03.3]} 58... Rg2+ {[%clk 0:00:24.5]} 59.
Kf5 {[%clk 0:00:02.9]} 59... Rf2+ {[%clk 0:00:23.7]} 60. Kg5 {[%clk 0:00:01.8]}
60... Rg2+ {[%clk 0:00:11.6]} 61. Kf4 {[%clk 0:00:01.9]} 61... Re2 {[%clk
0:00:09.2]} 62. Bf6 {[%clk 0:00:01.5]} 62... Re6 {[%clk 0:00:07.6]} 63. Kg5
{[%clk 0:00:01.1]} 63... Re2 {[%clk 0:00:05]} 64. Rc8+ {[%clk 0:00:01.7]} 64...
Re8 {[%clk 0:00:03.7]} 65. Rc7 {[%clk 0:00:02.3]} 65... Re6 {[%clk 0:00:04]} 66.
Rc8+ {[%clk 0:00:02.5]} 66... Re8 {[%clk 0:00:04.4]} 67. Rc5 {[%clk 0:00:03.2]}
67... Re6 {[%clk 0:00:04.6]} 68. Rf5 {[%clk 0:00:02.7]} 68... Rc6 {[%clk
0:00:04.2]} 69. Rf4 {[%clk 0:00:02.7]} 69... Rc4 {[%clk 0:00:04.3]} 70. Rf5
{[%clk 0:00:02.7]} 70... Rc6 {[%clk 0:00:04.3]} 71. Re5 {[%clk 0:00:03]} 71...
Re6 {[%clk 0:00:04.4]} 72. Rc5 {[%clk 0:00:03.2]} 72... Rc6 {[%clk 0:00:04.3]}
73. Rd5 {[%clk 0:00:02.7]} 73... Rc8 {[%clk 0:00:04.6]} 74. Rd6 {[%clk
0:00:02.9]} 74... Re8 {[%clk 0:00:04.8]} 75. Rd4 {[%clk 0:00:02.8]} 75... Re6
{[%clk 0:00:04.9]} 76. Kf5 {[%clk 0:00:03]} 76... Re8 {[%clk 0:00:04.7]} 77.
Rg4+ {[%clk 0:00:03.6]} 77... Kh7 {[%clk 0:00:02.5]} 78. Rg3 {[%clk 0:00:02.4]}
78... Re6 {[%clk 0:00:01.6]} 79. Rg7+ {[%clk 0:00:02]} 79... Kxh6 {[%clk
0:00:01.7]} 80. Rxf7 {[%clk 0:00:02.6]} 80... Rc6 {[%clk 0:00:01.2]} 81. Bg5+
{[%clk 0:00:03.1]} 81... Kh5 {[%clk 0:00:01.4]} 82. Rh7+ {[%clk 0:00:04]} 82...
Rh6 {[%clk 0:00:00.6]} 83. Rxh6# {[%clk 0:00:04.9]} 1-0